bitfinex-derivatives/quotes_BTCF0:USTF0_20250910
["timestamp","ask_amount","ask_price","bid_price","bid_amount"]
[1757510564944,0.3672,113590.0,113580.0,0.21617174]
[1757510565437,0.3672,113590.0,113580.0,0.15308339]
[1757510566639,0.3672,113590.0,113580.0,0.21617174]
[1757510567836,0.3672,113590.0,113580.0,0.15308339]
[1757510568532,0.3672,113590.0,113580.0,0.03587217]
[1757510568729,0.3618,113590.0,113580.0,0.52029461]
[1757510568936,0.3618,113590.0,113580.0,0.40308339]
[1757510569141,0.3672,113590.0,113580.0,0.40308339]
[1757510571043,0.3618,113590.0,113580.0,0.52029461]
[1757510571346,0.3618,113590.0,113580.0,0.58338296]
[1757510571545,0.3672,113590.0,113580.0,0.34896052]
[1757510571746,0.3672,113590.0,113580.0,0.28587217]
[1757510572051,0.3672,113590.0,113580.0,0.46617174]
[1757510574352,0.3672,113590.0,113580.0,0.28587217]
[1757510574545,0.3672,113590.0,113580.0,0.16188339]
[1757510574752,0.3672,113590.0,113580.0,0.22492703]
[1757510575143,0.3672,113590.0,113580.0,0.16188339]
[1757510575350,0.3672,113590.0,113580.0,0.22494083]
[1757510576351,0.3672,113590.0,113580.0,0.16188339]
[1757510576748,0.3672,113590.0,113580.0,0.22495679]
[1757510577148,0.3672,113590.0,113580.0,0.107728]
[1757510577450,0.3672,113590.0,113580.0,0.16188339]
[1757510577844,0.3618,113590.0,113580.0,0.27909461]
[1757510578249,0.001,113590.0,113580.0,0.3879463]
[1757510578952,0.001,113590.0,113580.0,0.47550207]
[1757510579247,0.001,113590.0,113580.0,0.36665038]
[1757510579450,0.001,113590.0,113580.0,0.35780342]
[1757510579644,0.3672,113590.0,113580.0,0.35780342]
[1757510580451,0.3672,113590.0,113580.0,0.12338098]
[1757510580652,0.3672,113590.0,113580.0,0.35780342]
[1757510581048,0.3672,113590.0,113580.0,0.12338098]
[1757510581449,0.3672,113590.0,113580.0,0.35780342]
[1757510583656,0.3672,113590.0,113580.0,0.12338098]
[1757510583856,0.3672,113590.0,113580.0,0.35780342]
[1757510584462,0.3672,113590.0,113580.0,0.12338098]
[1757510584754,0.3672,113590.0,113580.0,0.35780342]
[1757510585752,0.3672,113590.0,113580.0,0.27909461]
[1757510585954,0.3672,113590.0,113580.0,0.12338098]
[1757510586159,0.3672,113590.0,113580.0,0.27909461]
[1757510586556,0.3672,113590.0,113580.0,0.35780342]
[1757510586954,0.3672,113590.0,113580.0,0.27909461]
[1757510587153,0.3672,113590.0,113580.0,0.16188339]
[1757510587354,0.3672,113590.0,113580.0,0.2405922]
[1757510588355,0.3672,113590.0,113580.0,0.35780342]
[1757510588555,0.3618,113590.0,113580.0,0.35780342]
[1757510590151,0.3618,113590.0,113580.0,0.34210859]
[1757510590350,0.3618,113590.0,113580.0,0.27909461]
[1757510591455,0.3618,113590.0,113580.0,0.34210859]
[1757510591762,0.3618,113590.0,113580.0,0.27909461]
[1757510593263,0.3618,113590.0,113580.0,0.34210859]
[1757510594358,0.3618,113590.0,113580.0,0.27909461]
[1757510594774,0.3672,113590.0,113580.0,0.27909461]
[1757510595667,0.3672,113590.0,113580.0,0.04467217]
[1757510595855,0.3672,113590.0,113580.0,0.27909461]
[1757510596255,0.3672,113590.0,113580.0,0.04467217]
[1757510596459,0.3672,113590.0,113580.0,0.27909461]
[1757510597965,0.3672,113590.0,113580.0,0.36713201]
[1757510598163,0.3672,113590.0,113580.0,0.04467217]
[1757510598367,0.3672,113590.0,113580.0,0.27909461]
[1757510598568,0.3618,113590.0,113580.0,0.43014599]
[1757510599265,0.3672,113590.0,113580.0,0.36713201]
[1757510599464,0.3672,113590.0,113580.0,0.27909461]
[1757510599772,0.3672,113590.0,113580.0,0.04467217]
[1757510599976,0.3672,113590.0,113580.0,0.27909461]
[1757510601073,0.3618,113590.0,113580.0,0.27909461]
[1757510601873,0.3672,113590.0,113580.0,0.27909461]
[1757510602175,0.3672,113590.0,113580.0,0.04467217]
[1757510602474,0.3618,113590.0,113580.0,0.27909461]
[1757510602772,0.3618,113590.0,113580.0,0.38512025]
[1757510602968,0.001,113590.0,113580.0,0.99592025]
[1757510603674,0.001,113590.0,113580.0,1.05893423]
[1757510604371,0.001,113590.0,113580.0,0.99592025]
[1757510606080,0.001,113590.0,113580.0,0.76149781]
[1757510606384,0.001,113590.0,113580.0,1.84870023]
[1757510606676,0.001,113590.0,113580.0,0.42346041]
[1757510606976,0.18223991,113590.0,113580.0,0.41434023]
[1757510607178,0.18223991,113590.0,113580.0,1.23786023]
[1757510607379,0.0064,113590.0,113580.0,1.23786023]
[1757510607581,0.0064,113590.0,113580.0,0.88618041]
[1757510607873,0.0064,113590.0,113580.0,1.23786023]
[1757510608472,0.0064,113590.0,113580.0,0.88618041]
[1757510608778,0.0064,113590.0,113580.0,1.23786023]
[1757510610576,0.0064,113590.0,113580.0,0.06266041]
[1757510610577,0.54303991,113590.0,113580.0,0.06266041]
[1757510610777,0.79303991,113590.0,113580.0,0.04467217]
[1757510611876,0.63847609,113590.0,113580.0,0.04467217]
[1757510612179,0.63847609,113590.0,113580.0,0.22051208]
[1757510612180,0.814316,113590.0,113580.0,0.22051208]
[1757510612374,0.79303991,113590.0,113580.0,0.22051208]
[1757510613478,0.6172,113590.0,113580.0,0.22051208]
[1757510613783,0.79303991,113590.0,113580.0,0.22051208]
[1757510614276,0.6172,113590.0,113580.0,0.22051208]
[1757510614682,0.79303991,113590.0,113580.0,0.22051208]
[1757510614981,0.6172,113590.0,113580.0,0.39635199]
[1757510615181,0.79303991,113590.0,113580.0,0.39635199]
[1757510616278,0.79303991,113590.0,113580.0,0.22051208]
[1757510618782,0.6172,113590.0,113580.0,0.22051208]
[1757510618985,0.79303991,113590.0,113580.0,0.22051208]
[1757510619185,0.79303991,113590.0,113580.0,0.39635199]
[1757510619186,0.3672,113590.0,113580.0,0.39635199]
[1757510619389,0.54303991,113590.0,113580.0,0.39635199]
[1757510620289,0.3672,113590.0,113580.0,0.39635199]
[1757510620490,0.54303991,113590.0,113580.0,0.39635199]
[1757510621694,0.3672,113590.0,113580.0,0.39635199]
[1757510621989,0.54303991,113590.0,113580.0,0.39635199]
[1757510622386,0.54303991,113590.0,113580.0,0.22051208]
[1757510622589,0.54303991,113590.0,113580.0,0.04467217]
[1757510622792,0.54303991,113590.0,113580.0,0.22051208]
[1757510622989,0.56432662,113590.0,113580.0,0.22051208]
[1757510623884,0.38848671,113590.0,113580.0,0.22051208]
[1757510624080,0.38848671,113590.0,113580.0,0.04467217]
[1757510624281,0.3672,113590.0,113580.0,0.22051208]
[1757510624593,0.54303991,113590.0,113580.0,0.22051208]
[1757510625196,0.56432392,113590.0,113580.0,0.22051208]
[1757510625390,0.3672,113590.0,113580.0,0.22051208]
[1757510625591,0.54303991,113590.0,113580.0,0.22051208]
[1757510625801,0.3672,113590.0,113580.0,0.22051208]
[1757510626097,0.54303991,113590.0,113580.0,0.22051208]
[1757510626985,0.3672,113590.0,113580.0,0.04467217]
[1757510627189,0.54303991,113590.0,113580.0,0.22051208]
[1757510627797,0.38848199,113590.0,113580.0,0.04467217]
[1757510628001,0.5643219,113590.0,113580.0,0.22051208]
[1757510628194,0.54303991,113590.0,113580.0,0.22051208]
[1757510628400,0.54303991,113590.0,113580.0,0.04467217]
[1757510628594,0.99016179,113590.0,113580.0,0.00915217]
[1757510628900,0.96887982,113590.0,113580.0,0.00915217]
[1757510629698,1.79207982,113590.0,113580.0,0.00915217]
[1757510629893,1.81336068,113590.0,113580.0,0.00915217]
[1757510630603,1.81336068,113590.0,113580.0,2.17e-06]
[1757510630800,1.81336068,113590.0,113570.0,0.00035221]
[1757510631101,0.71247982,113580.0,113570.0,0.00035221]
[1757510631301,0.73376068,113580.0,113570.0,0.00035221]
[1757510632796,0.73376068,113580.0,113570.0,0.00135221]
[1757510634406,0.90960059,113580.0,113570.0,0.00135221]
[1757510635002,0.90960059,113580.0,113570.0,2.21e-06]
[1757510635302,1.73276059,113580.0,113570.0,2.21e-06]
[1757510635515,0.75460858,113580.0,113570.0,2.21e-06]
[1757510635707,1.57776858,113580.0,113560.0,0.01427224]
[1757510635909,0.53663991,113570.0,113560.0,0.01427224]
[1757510636108,0.55792077,113570.0,113560.0,0.01427224]
[1757510636610,0.38208086,113570.0,113560.0,0.01427224]
[1757510636807,1.20524086,113570.0,113560.0,0.03630224]
[1757510636999,1.38108077,113570.0,113560.0,0.03630224]
[1757510637500,0.55792077,113570.0,113560.0,0.03630224]
[1757510637710,1.38108077,113570.0,113560.0,0.03630224]
[1757510638010,0.55792077,113570.0,113560.0,0.03630224]
[1757510638307,0.6294183,113570.0,113560.0,0.03630224]
[1757510638513,1.4525783,113570.0,113560.0,0.03630224]
[1757510638816,0.60813744,113570.0,113560.0,0.21214215]
[1757510639206,0.43229753,113570.0,113560.0,0.03630224]
[1757510639401,0.78397735,113570.0,113560.0,0.00035224]
[1757510639603,0.80523642,113570.0,113560.0,0.00035224]
[1757510639809,1.45251651,113570.0,113560.0,0.01427224]
[1757510640114,0.43229753,113570.0,113560.0,0.03630224]
[1757510640412,0.60813744,113570.0,113560.0,0.21214215]
[1757510640908,0.60813744,113570.0,113560.0,0.03630224]
[1757510641111,0.62939855,113570.0,113560.0,0.01427224]
[1757510641312,0.45355864,113570.0,113560.0,0.01427224]
[1757510641613,0.62939855,113570.0,113560.0,0.01427224]
[1757510641816,0.45355864,113570.0,113560.0,0.01427224]
[1757510642020,0.80523846,113570.0,113560.0,0.01427224]
[1757510642213,1.62839846,113570.0,113560.0,0.01427224]
[1757510642509,1.62839846,113570.0,113560.0,0.00035224]
[1757510642715,1.27671864,113570.0,113560.0,0.00035224]
[1757510642915,1.62839846,113570.0,113560.0,0.00035224]
[1757510643814,1.80423837,113570.0,113560.0,0.00035224]
[1757510644003,1.62839846,113570.0,113560.0,2.24e-06]
[1757510644209,1.80423837,113570.0,113550.0,0.00035227]
[1757510644406,0.53663991,113560.0,113550.0,0.00035227]
[1757510644607,0.90958084,113560.0,113550.0,0.00035227]
[1757510645217,1.15958084,113560.0,113550.0,0.00035227]
[1757510645514,0.63206111,113560.0,113550.0,0.00035227]
[1757510645714,1.15958084,113560.0,113550.0,0.00035227]
[1757510646110,1.15958084,113560.0,113540.0,0.0003523]
[1757510646318,1.53563982,113550.0,113540.0,0.0003523]
[1757510646510,1.57776336,113550.0,113530.0,0.00035233]
[1757510646712,0.3608,113540.0,113530.0,0.03630233]
[1757510646914,0.73374093,113540.0,113530.0,0.00035233]
[1757510647114,1.55742093,113540.0,113530.0,0.00035233]
[1757510648309,0.38206111,113540.0,113530.0,0.01362233]
[1757510648511,1.55766093,113540.0,113530.0,0.00035233]
[1757510648915,0.73374093,113540.0,113530.0,0.00135233]
[1757510649115,1.56026093,113540.0,113530.0,0.03644233]
[1757510649624,1.21794255,113540.0,113530.0,0.03644233]
[1757510649818,1.56962237,113540.0,113530.0,0.03644233]
[1757510650312,1.74546228,113540.0,113530.0,0.00135233]
[1757510651421,1.21794255,113540.0,113530.0,0.00135233]
[1757510651622,1.56962237,113540.0,113530.0,0.00035233]
[1757510651919,1.74546228,113540.0,113530.0,0.00035233]
[1757510653823,1.74646228,113540.0,113530.0,0.00035233]
[1757510654121,1.74694228,113540.0,113530.0,0.00035233]
[1757510654323,1.57106237,113540.0,113530.0,0.00035233]
[1757510654723,1.57122237,113540.0,113530.0,0.01362233]
[1757510655421,0.74378237,113540.0,113530.0,0.01362233]
[1757510655622,1.57126237,113540.0,113530.0,0.01362233]
[1757510656025,1.21958255,113540.0,113530.0,0.01362233]
[1757510656225,1.57102237,113540.0,113530.0,0.03544233]
[1757510656527,1.57102237,113540.0,113530.0,0.01362233]
[1757510656822,0.74378237,113540.0,113530.0,0.03544233]
[1757510657021,1.57102237,113540.0,113530.0,0.03544233]
[1757510657826,1.57062237,113540.0,113530.0,0.03544233]
[1757510658328,1.57062237,113540.0,113530.0,0.01362233]
[1757510658923,1.57062237,113540.0,113530.0,0.00035233]
[1757510659128,1.74646228,113540.0,113530.0,0.00035233]
[1757510660028,1.74646228,113540.0,113520.0,0.00035236]
[1757510660327,0.71247982,113530.0,113520.0,0.00035236]
[1757510660626,0.73374093,113530.0,113520.0,0.00035236]
[1757510661424,2.23374093,113530.0,113520.0,0.00035236]
[1757510661823,1.88206111,113530.0,113520.0,0.00035236]
[1757510662120,2.23374093,113530.0,113520.0,0.00035236]
[1757510662723,2.05890102,113530.0,113520.0,0.00035236]
[1757510663027,2.23474093,113530.0,113520.0,0.00035236]
[1757510663424,1.88306111,113530.0,113520.0,0.03544236]
[1757510663626,2.05890102,113530.0,113520.0,0.03544236]
[1757510663924,0.001,113530.0,113520.0,0.63712218]
[1757510664431,0.07121232,113530.0,113520.0,0.63712218]
[1757510665029,0.001,113530.0,113520.0,0.28544236]
[1757510665227,0.001,113530.0,113520.0,0.63712218]
[1757510665426,0.71347982,113530.0,113520.0,0.03544236]
[1757510665631,1.56366448,113530.0,113520.0,0.00035236]
[1757510666031,1.21198466,113530.0,113520.0,0.00035236]
[1757510666325,1.56366448,113530.0,113520.0,0.00035236]
[1757510666928,1.21198466,113530.0,113520.0,0.01362236]
[1757510667134,1.56366448,113530.0,113520.0,0.01362236]
[1757510668330,1.56366448,113530.0,113520.0,0.00035236]
[1757510668331,1.51859162,113530.0,113520.0,0.00035236]
[1757510668526,1.4011587,113530.0,113520.0,0.00035236]
[1757510668921,0.5722387,113530.0,113520.0,0.01362236]
[1757510669126,1.4010787,113530.0,113520.0,0.01362236]
[1757510669532,1.4010787,113530.0,113520.0,0.00035236]
[1757510670334,1.28364578,113530.0,113520.0,0.00035236]
[1757510670536,1.4010787,113530.0,113520.0,0.00035236]
[1757510670934,0.68967162,113530.0,113520.0,0.00035236]
[1757510671239,1.28500578,113530.0,113520.0,0.01362236]
[1757510671430,0.5722387,113530.0,113520.0,0.03544236]
[1757510671637,1.4024387,113530.0,113520.0,0.03544236]
[1757510672140,1.4024387,113530.0,113520.0,0.01362236]
[1757510673248,0.5722387,113530.0,113520.0,0.03544236]
[1757510673548,0.45480578,113530.0,113520.0,0.28544236]
[1757510673851,0.5722387,113530.0,113520.0,0.28544236]
[1757510674850,0.45480578,113530.0,113520.0,0.28544236]
[1757510675044,0.5722387,113530.0,113520.0,0.28544236]
[1757510675747,0.5722387,113530.0,113520.0,0.03544236]
[1757510676049,0.5722387,113530.0,113520.0,0.01362236]
[1757510676452,0.45480578,113530.0,113520.0,0.03544236]
[1757510676751,0.5722387,113530.0,113520.0,0.01362236]
[1757510677845,0.5722387,113530.0,113520.0,0.00035236]
[1757510678045,0.93967162,113530.0,113520.0,0.00035236]
[1757510678247,0.93967162,113530.0,113510.0,0.01392]
[1757510678552,1.42410584,113520.0,113510.0,0.01392]
[1757510678754,1.4453705,113520.0,113500.0,0.03586242]
[1757510679052,0.47823292,113510.0,113500.0,0.03586242]
[1757510679254,0.38206466,113510.0,113500.0,0.15329534]
[1757510679456,0.49949758,113510.0,113500.0,0.15329534]
[1757510679752,0.3608,113510.0,113500.0,0.40329534]
[1757510680247,0.3608,113510.0,113500.0,0.52072826]
[1757510680749,0.3608,113510.0,113500.0,0.52272826]
[1757510680950,0.38185693,113510.0,113500.0,0.28786242]
[1757510681256,0.3608,113510.0,113500.0,0.52337584]
[1757510681854,0.3608,113520.0,113510.0,0.03543]
[1757510682054,0.38185588,113520.0,113510.0,0.03543]
[1757510682249,0.4992888,113520.0,113510.0,0.03543]
[1757510682858,0.38185588,113520.0,113510.0,0.15286292]
[1757510683056,0.4992888,113520.0,113510.0,0.03643]
[1757510683258,0.4992888,113520.0,113510.0,0.03743]
[1757510684053,0.4992888,113520.0,113510.0,0.01584]
[1757510684354,0.4992888,113520.0,113510.0,0.03743]
[1757510686848,0.4992888,113520.0,113510.0,0.52229584]
[1757510686849,0.3608,113520.0,113510.0,0.52229584]
[1757510687055,0.43254112,113530.0,113520.0,0.03543]
[1757510687355,0.3608,113540.0,113530.0,0.03543]
[1757510687557,0.3608,113540.0,113530.0,0.15286292]
[1757510687855,0.38090825,113550.0,113540.0,0.01384]
[1757510688156,0.38090825,113550.0,113540.0,0.15286292]
[1757510688157,0.40167596,113550.0,113540.0,0.15286292]
[1757510688362,0.38991788,113550.0,113540.0,0.15286292]
[1757510689050,0.38991788,113550.0,113540.0,0.03543]
[1757510689257,0.38991788,113550.0,113540.0,0.15286292]
[1757510689853,0.5073508,113550.0,113540.0,0.03543]
[1757510690347,0.55386127,113550.0,113540.0,0.03543]
[1757510690553,0.55586127,113550.0,113540.0,0.03543]
[1757510690860,0.55886127,113550.0,113540.0,0.03543]
[1757510691753,0.39491788,113550.0,113540.0,0.03543]
[1757510692258,0.39491788,113550.0,113540.0,0.19937339]
[1757510692763,0.39491788,113550.0,113540.0,0.03543]
[1757510694252,0.38590825,113550.0,113540.0,0.19937339]
[1757510694449,0.38590825,113550.0,113540.0,0.44937339]
[1757510697859,0.02510825,113550.0,113540.0,0.44937339]
[1757510698353,0.02510825,113550.0,113540.0,1.27621339]
[1757510698854,0.02510825,113550.0,113540.0,0.44937339]
[1757510699055,0.02510825,113550.0,113540.0,1.27597339]
[1757510699562,0.02510825,113550.0,113540.0,1.54507339]
[1757510699855,0.02510825,113550.0,113540.0,1.54495339]
[1757510700250,0.02510825,113550.0,113540.0,0.55453]
[1757510700457,0.02510825,113550.0,113540.0,0.71847339]
[1757510701364,0.005,113550.0,113540.0,1.1854153]
[1757510701563,0.005,113550.0,113540.0,2.0115353]
[1757510702364,0.3608,113580.0,113560.0,0.03543]
[1757510702561,0.3608,113580.0,113570.0,0.19937339]
[1757510702862,0.3608,113580.0,113570.0,0.28741839]
[1757510703159,0.46040369,113590.0,113580.0,0.03543]
[1757510703160,0.09086808,113590.0,113580.0,0.03543]
[1757510703358,0.09086808,113590.0,113580.0,1.02509339]
[1757510703568,0.02037597,113590.0,113580.0,1.02509339]
[1757510703957,0.02037597,113590.0,113580.0,1.11313059]
[1757510704158,0.02037597,113590.0,113580.0,1.47393059]
[1757510704369,0.02029555,113610.0,113600.0,0.03543]
[1757510704670,0.02029555,113610.0,113600.0,1.02481339]
[1757510705467,0.02029555,113610.0,113600.0,1.02473339]
[1757510705669,0.43138613,113620.0,113610.0,0.03543]
[1757510705856,0.43138613,113620.0,113610.0,0.19937339]
[1757510706255,0.3608,113620.0,113610.0,0.19937339]
[1757510706856,0.3638,113620.0,113610.0,1.02453339]
[1757510707060,0.37265533,113620.0,113610.0,1.02453339]
[1757510707256,0.01185533,113620.0,113610.0,1.02453339]
[1757510707462,0.01185533,113620.0,113610.0,0.19937339]
[1757510707669,0.007,113620.0,113610.0,1.38497339]
[1757510708062,0.007,113620.0,113610.0,1.72298739]
[1757510708465,0.02029866,113630.0,113620.0,0.01344]
[1757510708771,0.02029866,113630.0,113620.0,0.56052339]
[1757510709669,0.43112116,113650.0,113640.0,0.03578]
[1757510710171,0.43112116,113650.0,113640.0,0.86018]
[1757510710670,0.32942528,113650.0,113640.0,1.02412339]
[1757510710971,0.07942528,113650.0,113640.0,1.02412339]
[1757510711276,0.004,113650.0,113640.0,1.02412339]
[1757510711975,0.006,113650.0,113640.0,0.86018]
[1757510712175,0.006,113650.0,113640.0,1.02412339]
[1757510712774,0.006,113650.0,113640.0,0.19972339]
[1757510713071,0.006,113650.0,113640.0,1.38436339]
[1757510713271,0.006,113650.0,113640.0,0.56052339]
[1757510713465,0.006,113650.0,113640.0,1.38436339]
[1757510713872,0.006,113650.0,113640.0,1.88629758]
[1757510714077,0.3608,113670.0,113660.0,0.19972339]
[1757510714266,0.38118563,113680.0,113660.0,1.02348339]
[1757510714472,0.38118563,113680.0,113670.0,0.03578]
[1757510715469,0.38118563,113680.0,113670.0,0.19972339]
[1757510715677,0.38118563,113680.0,113670.0,0.19572339]
[1757510716380,0.38992065,113680.0,113670.0,0.19572339]
[1757510716675,0.39492065,113680.0,113670.0,0.02778]
[1757510717380,0.39892065,113680.0,113670.0,0.19172339]
[1757510717577,0.46926547,113680.0,113670.0,0.19172339]
[1757510718578,0.71426547,113680.0,113670.0,0.19172339]
[1757510718781,0.71526547,113680.0,113670.0,0.19172339]
[1757510718976,0.71526547,113680.0,113670.0,0.02778]
[1757510719276,0.71526547,113680.0,113670.0,0.4559]
[1757510719577,0.71426547,113680.0,113670.0,0.4559]
[1757510719779,0.71026547,113680.0,113670.0,0.4559]
[1757510719968,0.71026547,113680.0,113670.0,0.61984339]
[1757510720572,0.71026547,113680.0,113670.0,0.62384339]
[1757510720768,0.71026547,113680.0,113670.0,0.19572339]
[1757510721978,0.71026547,113680.0,113670.0,0.03178]
[1757510724570,0.87420886,113680.0,113670.0,0.00944]
[1757510724776,0.87420886,113680.0,113670.0,0.004]
[1757510725079,1.69764886,113680.0,113670.0,0.004]
[1757510725273,1.71808705,113680.0,113670.0,0.004]
[1757510725680,0.89464705,113680.0,113670.0,0.004]
[1757510725870,1.71804705,113680.0,113670.0,0.004]
[1757510727681,1.55410366,113680.0,113670.0,0.004]
[1757510728278,1.71878799,113680.0,113670.0,0.004]
[1757510728976,1.55410366,113680.0,113670.0,0.004]
[1757510729291,1.88347232,113680.0,113640.0,0.03578]
[1757510729479,0.88628433,113650.0,113630.0,0.01344]
[1757510729778,0.3608,113640.0,113630.0,0.01344]
[1757510730078,0.52548433,113640.0,113620.0,0.20046433]
[1757510730285,0.3608,113630.0,113620.0,0.03578]
[1757510730982,0.43068305,113630.0,113620.0,0.03578]
[1757510731183,0.43068305,113630.0,113620.0,0.04078]
[1757510731585,0.36986796,113630.0,113620.0,0.04078]
[1757510732182,0.36986796,113630.0,113620.0,0.01844]
[1757510732183,0.53455229,113630.0,113620.0,0.01844]
[1757510732378,0.53455229,113630.0,113620.0,0.006]
[1757510732884,0.53455229,113630.0,113620.0,0.001]
[1757510734588,1.35795229,113630.0,113620.0,0.001]
[1757510735285,0.53455229,113630.0,113620.0,0.001]
[1757510735588,1.19330796,113630.0,113620.0,0.01444]
[1757510735781,0.36986796,113630.0,113620.0,0.20146433]
[1757510736179,0.43918778,113630.0,113620.0,0.20146433]
[1757510737891,0.43918778,113630.0,113620.0,0.03678]
[1757510738091,0.43918778,113630.0,113620.0,0.20146433]
[1757510739094,0.43918778,113630.0,113620.0,0.03678]
[1757510739292,0.43918778,113630.0,113620.0,0.20146433]
[1757510742001,0.43918778,113630.0,113620.0,0.45146433]
[1757510743295,0.43918778,113630.0,113620.0,0.28678]
[1757510743493,0.43918778,113630.0,113620.0,0.45146433]
[1757510750494,0.36986796,113630.0,113620.0,0.45146433]
[1757510752502,0.36986796,113630.0,113620.0,0.28678]
[1757510752704,0.36986796,113630.0,113620.0,0.45146433]
[1757510755700,0.43059243,113640.0,113630.0,0.01361]
[1757510756003,0.43059243,113640.0,113630.0,0.20119433]
[1757510756401,0.3608,113640.0,113630.0,0.20119433]
[1757510756803,0.3608,113650.0,113640.0,0.03651]
[1757510757103,0.39041588,113650.0,113640.0,0.20119433]
[1757510758293,0.36976387,113650.0,113640.0,0.20119433]
[1757510759503,0.36976387,113650.0,113640.0,0.36587866]
[1757510760808,0.37076387,113650.0,113640.0,0.36587866]
[1757510763101,0.37076387,113650.0,113640.0,0.20119433]
[1757510766309,0.37076387,113650.0,113640.0,0.38789164]
[1757510770511,0.54645469,113650.0,113640.0,0.38789164]
[1757510770704,0.37076387,113650.0,113640.0,0.03651]
[1757510770897,0.54645469,113650.0,113640.0,0.21220082]
[1757510772108,0.37076387,113650.0,113640.0,0.38789164]
[1757510772308,0.37076387,113650.0,113640.0,0.39668164]
[1757510776809,0.37076387,113650.0,113640.0,0.0453]
[1757510777013,0.37076387,113650.0,113640.0,0.39668164]
[1757510779113,0.37076387,113650.0,113640.0,1.21936164]
[1757510779712,0.54645469,113650.0,113640.0,1.21936164]
[1757510780008,0.54645469,113650.0,113640.0,0.86798]
[1757510780209,0.54645469,113650.0,113640.0,0.39668164]
[1757510780414,0.54645469,113650.0,113640.0,1.21932164]
[1757510781507,0.37076387,113650.0,113640.0,1.21932164]
[1757510781714,0.54645469,113650.0,113640.0,1.21932164]
[1757510782909,0.56713446,113650.0,113640.0,1.21932164]
[1757510784007,0.39144364,113650.0,113640.0,1.21932164]
[1757510784505,0.56713446,113650.0,113640.0,1.21932164]
[1757510785106,0.56713446,113650.0,113640.0,0.86782]
[1757510785511,0.56713446,113650.0,113640.0,1.04351082]
[1757510786318,0.56713446,113650.0,113640.0,0.00879]
[1757510786619,0.74282528,113650.0,113640.0,0.00879]
[1757510786915,0.74282528,113650.0,113640.0,0.02156]
[1757510787115,0.56713446,113650.0,113640.0,0.02156]
[1757510787314,0.74282528,113650.0,113640.0,0.02156]
[1757510788310,0.56713446,113650.0,113640.0,0.02156]
[1757510789323,0.74282528,113650.0,113640.0,0.02156]
[1757510790213,0.99282528,113650.0,113640.0,0.02156]
[1757510790414,0.75862186,113650.0,113640.0,0.02156]
[1757510790614,1.58106186,113650.0,113640.0,0.02156]
[1757510791219,1.58106186,113650.0,113640.0,0.00879]
[1757510791720,1.69824008,113650.0,113640.0,0.00879]
[1757510791919,1.69816008,113650.0,113640.0,0.00879]
[1757510792315,0.87580008,113650.0,113640.0,0.00879]
[1757510792519,1.69816008,113650.0,113640.0,0.00879]
[1757510792719,0.87580008,113650.0,113640.0,0.00879]
[1757510793017,1.69816008,113650.0,113640.0,0.00879]
[1757510793521,1.69812008,113650.0,113640.0,0.00879]
[1757510796127,0.87580008,113650.0,113640.0,0.00879]
[1757510796317,1.69812008,113650.0,113640.0,0.00879]
[1757510797919,1.69808008,113650.0,113640.0,0.00879]
[1757510799328,1.44808008,113650.0,113640.0,0.00879]
[1757510800117,1.69808008,113650.0,113630.0,0.00096001]
[1757510800423,0.59515644,113640.0,113630.0,0.00096001]
[1757510800630,0.61583621,113640.0,113630.0,0.00096001]
[1757510800818,0.38147977,113640.0,113630.0,0.40241823]
[1757510801013,1.32081799,113640.0,113630.0,0.28524001]
[1757510801219,0.49865799,113640.0,113630.0,0.28524001]
[1757510801419,1.30013822,113640.0,113630.0,0.28524001]
[1757510801614,1.41727644,113640.0,113630.0,0.28524001]
[1757510801922,1.43789524,113640.0,113630.0,0.26366001]
[1757510802228,1.43789524,113640.0,113630.0,0.00096001]
[1757510802727,1.2035388,113640.0,113630.0,0.01366001]
[1757510802926,1.43789524,113640.0,113630.0,0.01366001]
[1757510804426,1.43789524,113640.0,113630.0,0.0127]
[1757510806516,1.43789524,113640.0,113620.0,0.01344]
[1757510806821,0.47797822,113630.0,113620.0,0.03502]
[1757510807023,0.49859702,113630.0,113620.0,0.01344]
[1757510807423,1.32059702,113630.0,113620.0,0.01344]
[1757510807821,1.32059702,113630.0,113620.0,0.03502]
[1757510808126,0.49859702,113630.0,113620.0,0.03502]
[1757510808315,1.32055702,113630.0,113620.0,0.03502]
[1757510808522,0.3814188,113630.0,113620.0,0.03502]
[1757510808825,1.32051702,113630.0,113620.0,0.03702]
[1757510809423,1.32051702,113630.0,113620.0,0.03802]
[1757510809730,0.49859702,113630.0,113620.0,0.03802]
[1757510809934,1.32047702,113630.0,113620.0,0.03802]
[1757510811128,0.49859702,113630.0,113620.0,0.03802]
[1757510811325,1.32047702,113630.0,113620.0,0.03802]
[1757510811526,1.2032988,113630.0,113620.0,0.03802]
[1757510811733,1.32047702,113630.0,113620.0,0.03802]
[1757510811926,0.49859702,113630.0,113620.0,0.03802]
[1757510812831,0.49859702,113630.0,113620.0,0.15519822]
[1757510813024,0.49859702,113630.0,113620.0,0.03802]
[1757510816437,0.3814188,113630.0,113620.0,0.03802]
[1757510816640,0.49859702,113630.0,113620.0,0.03802]
[1757510820139,0.3814188,113630.0,113620.0,0.03802]
[1757510820344,0.49859702,113630.0,113620.0,0.03802]
[1757510823040,0.3814188,113630.0,113620.0,0.03802]
[1757510823238,0.49859702,113630.0,113620.0,0.03802]
[1757510823432,0.3814188,113630.0,113620.0,0.03802]
[1757510823633,0.49859702,113630.0,113620.0,0.03802]
[1757510824437,0.3814188,113630.0,113620.0,0.03802]
[1757510824633,1.31999702,113630.0,113620.0,0.03802]
[1757510825241,0.49859702,113630.0,113620.0,0.03802]
[1757510829438,0.3814188,113630.0,113620.0,0.28802]
[1757510829642,0.49859702,113630.0,113620.0,0.28802]
[1757510832839,0.3814188,113630.0,113620.0,0.28802]
[1757510833040,0.49859702,113630.0,113620.0,0.28802]
[1757510838238,0.3814188,113630.0,113620.0,0.28802]
[1757510838648,0.49859702,113630.0,113620.0,0.28802]
[1757510842040,0.3814188,113630.0,113620.0,0.28802]
[1757510842243,0.49859702,113630.0,113620.0,0.28802]
[1757510848656,0.49859702,113630.0,113620.0,0.29302]
[1757510851253,0.3814188,113630.0,113620.0,0.29302]
[1757510851450,0.49859702,113630.0,113620.0,0.29302]
[1757510852357,0.3814188,113630.0,113620.0,0.29302]
[1757510852756,0.55721186,113630.0,113620.0,0.29302]
[1757510854056,0.3608,113630.0,113620.0,0.64460612]
[1757510854746,0.3608,113640.0,113630.0,0.03584]
[1757510854957,0.3608,113640.0,113630.0,0.38742612]
[1757510855157,0.3608,113640.0,113630.0,0.21163306]
[1757510856754,0.45311927,113660.0,113650.0,0.03584]
[1757510856955,0.43258588,113660.0,113650.0,0.21163306]